Cogmind - Beta 13 X1 @@@ ROGUE MODE // 2023.11.25 @ 16:35:25 Player: Plexion Result: Destroyed by H-77 Assassin with Coil Gun Performance ------------- Evolutions (6) 3000 Regions Visited (26) 5200 Robots Destroyed (192) 960 Value Destroyed (6128) 6128 Prototype IDs (86) 1720 Alien Tech Used (0) 0 Bonus (3083) 3083 TOTAL SCORE: 20091 Bonus ------- High Alert Combat Kills 609 Follower Combat Kills 3184 Network Hubs Disabled 400 Aligned with FarCom 300 Met Data Miner 300 Met Imprinter 300 Was Imprinted 300 Built Enhanced Grunts 300 Met R17 at Cetus 500 Friendly Fire -3110 Cogmind --------- Core Integrity 0/1150 Matter 300/300 Energy 186/240 System Corruption 37% Temperature Cool (52) Movement Walking (120) Location -4/Armory Parts ------- > --- POWER (2) -------- Light Neutrino Core Light Neutrino Core (fused) > --- PROPULSION (5) --- Myomer Leg Centrium Leg > --- UTILITY (10) ----- Advanced Cryofiber Web Advanced Heat Sink Long-range Terrain Scanner Advanced Terrain Scan Processor Advanced Transmission Jammer > --- WEAPON (2) ------- Enhanced Nova Cannon > --- INVENTORY (5) ---- Light Neutrino Core Zionite Biocell (600) Authchip [Armor] Component Analysis Suite GAL Module Peak State ------------ > --- POWER ------------ Micro Antimatter Reactor Compact Particle Reactor > --- PROPULSION ------- Combat Antigrav System Combat Antigrav System Combat Antigrav System Antigrav Array > --- UTILITY ---------- Large Storage Unit Advanced Sensor Array Improved Signal Interpreter Improved Targeting Computer Centrium Medium Armor Plating Advanced Shield Generator Improved Hacking Suite Advanced System Shield Combat Drone Bay > --- WEAPON ----------- Long-range Proton Cannon Enhanced Gauss Cannon > --- INVENTORY -------- Combat Antigrav System Zionite Biocell Advanced Terrain Scan Processor Advanced Transmission Jammer Improved Reaction Control System Centrium Medium Armor Plating Centrium Medium Armor Plating Advanced Shield Generator Component Analysis Suite Hacking Drone Bay EMDS Mini Assault Cannon Rocket Array GAL Module [Rating: 130] Favorites ----------- Power Cooled Deuterium Engine Engine Cooled Deuterium Engine Power Core Reinforced Fission Core Reactor Compact Particle Reactor Propulsion Combat Antigrav System Treads Light Treads Leg Flexi-carbon Leg Hover Unit Combat Antigrav System Flight Unit Xenon Bombardment Thruster Utility Improved Signal Interpreter Device Advanced Sensor Array Storage Large Storage Unit Processor Improved Signal Interpreter Hackware System Shield Protection Light Armor Plating Weapon Mini Assault Cannon Energy Gun Medium Laser Energy Cannon Enhanced Nova Cannon Ballistic Gun Autogun Ballistic Cannon Mini Assault Cannon Launcher Rocket Array Special Weapon Improved Remote Datajack Slashing Weapon 1C-UTU's Sword "Choppy" Piercing Weapon CR-A16's Pointy Stick Build | -11 -10 -10 -9 -9 -9 -8 -8 -7 -7 -7 -7 -7 -7 -6 -6 -6 -6 -6 -5 -5 -5 -5 -5 -5 -4 -4 ------- Run | Jun Mat Min Mat Min Exi Min Mat Fac Was Fac Low Low Zio Pro Fac Low Low Dat Pro Fac Ext Cet Arc Hub Fac Arm Slots Evolved 12 | . . . 2 . . . 2 2 . . . . . . 2 . . . . 2 . . . . 2 . Power 1 | . . . . . . . . . . . . . . . . . . . . . . . . . 1 . Propulsion 3 | . . . 1 . . . . . . . . . . . 1 . . . . . . . . . 1 . Utility 8 | . . . 1 . . . 2 2 . . . . . . 1 . . . . 2 . . . . . . Weapon . | . . . . . . . . . . . . . . . . . . . . . . . . . . . Parts Attached 344 | 7 5 2 33 4 23 20 8 32 1 8 1 7 6 2 35 . 5 . . 9 24 5 2 9 35 61 Power 26 | 1 . 1 3 . 1 1 . 1 . . . . . . 3 . . . . . . 2 . . 2 11 Engine 6 | 1 . 1 1 . . . . 1 . . . . . . 2 . . . . . . . . . . . Core 15 | . . . 2 . 1 1 . . . . . . . . 1 . . . . . . . . . 1 9 Reactor 5 | . . . . . . . . . . . . . . . . . . . . . . 2 . . 1 2 Propulsion 57 | 2 . . 14 . 2 7 1 3 . 2 . . . . 8 . . . . . . . . 1 4 13 Treads 22 | 2 . . 14 . 2 3 1 . . . . . . . . . . . . . . . . . . . Leg 8 | . . . . . . . . . . . . . . . . . . . . . . . . . . 8 Wheel . | . . . . . . . . . . . . . . . . . . . . . . . . . . . Hover 16 | . . . . . . 1 . . . . . . . . 5 . . . . . . . . 1 4 5 Flight 11 | . . . . . . 3 . 3 . 2 . . . . 3 . . . . . . . . . . . Utility 153 | 1 5 . 9 4 10 5 3 10 1 5 1 . 4 . 17 . 4 . . 9 17 2 2 6 17 21 Device 79 | . 2 . . 3 3 . 2 3 . 3 . . 2 . 9 . 3 . . 9 10 . 2 6 8 14 Storage 12 | 1 1 . . 1 1 2 . 1 1 . . . . . 1 . 1 . . . 1 . . . . 1 Processor 14 | . . . 1 . 2 . 1 3 . 1 1 . . . 1 . . . . . 1 . . . 2 1 Hackware 11 | . . . . . . . . 3 . . . . 2 . 4 . . . . . . 1 . . . 1 Protection 37 | . 2 . 8 . 4 3 . . . 1 . . . . 2 . . . . . 5 1 . . 7 4 Artifact . | . . . . . . . . . . . . . . . . . . . . . . . . . . . Weapon 108 | 3 . 1 7 . 10 7 4 18 . 1 . 7 2 2 7 . 1 . . . 7 1 . 2 12 16 Energy Gun 6 | 2 . . . . . . . . . . . . . . . . . . . . . . . . . 4 Energy Cannon 7 | . . . . . . . . . . . . . . . . . . . . . . . . . 1 6 Ballistic Gun 27 | 1 . 1 7 . 4 5 3 4 . . . . . . 2 . . . . . . . . . . . Ballistic Cannon 25 | . . . . . . . . 5 . 1 . 4 . 1 1 . . . . . . . . 2 7 4 Launcher 8 | . . . . . 1 1 1 . . . . . . . . . . . . . . . . . 4 1 Special Weapon 5 | . . . . . . . . . . . . . 1 . . . . . . . 4 . . . . . Impact Weapon . | . . . . . . . . . . . . . . . . . . . . . . . . . . . Slashing Weapon 21 | . . . . . 5 1 . 9 . . . 3 1 1 . . . . . . . . . . . 1 Piercing Weapon 9 | . . . . . . . . . . . . . . . 4 . 1 . . . 3 1 . . . . Special Melee Weapon . | . . . . . . . . . . . . . . . . . . . . . . . . . . . Unidentified Prototypes 17 | . . . 1 1 4 3 1 1 . . . . 1 . . . . . . . 3 . . . 2 . Corrupted Parts 4 | . . . . . . . . . . . . . . . . . . . . . . . . . . 4 System Corruption 21 | . . . . . . . . . . . . . . . . . . . . . . . . . . 21 Parts Lost 77 | . . . 8 . 7 1 . . 1 1 . . . . 13 . . . . . 1 . . 1 3 41 Power 9 | . . . 1 . 1 . . . . . . . . . 2 . . . . . . . . . 1 4 Propulsion 20 | . . . 1 . 2 . . . . . . . . . 5 . . . . . . . . . 1 11 Utility 34 | . . . 5 . 3 1 . . 1 1 . . . . 4 . . . . . 1 . . . 1 17 Weapon 14 | . . . 1 . 1 . . . . . . . . . 2 . . . . . . . . 1 . 9 Highest Loss Streak 14 | . . . 2 . 3 1 . . 1 1 . . . . 5 . . . . . 1 . . 1 1 14 To Critical Strikes 3 | . . . . . 2 . . . . . . . . . . . . . . . . . . . . 1 Average Slot Usage (%) 92 | . 99 100 99 100 91 89 99 90 92 89 92 94 100 100 67 100 99 100 100 94 93 94 94 93 90 70 Engine 4 | . 14 14 6 11 4 . . 6 7 7 7 7 7 7 1 6 6 6 6 5 5 4 . . . . Core 2 | . . . 4 . 6 8 9 . . . . . . . . . . . . . . . . . 1 5 Treads 13 | . 28 28 32 33 32 27 27 . . . . . . . . . . . . . . . . . . . Hover 7 | . . . . . . . . . . . . . . . 5 26 26 26 26 23 23 23 23 23 23 7 Flight 4 | . . . . . . 5 . 22 23 23 23 23 23 23 11 . . . . . . . . . . . Device 10 | . 9 14 1 11 5 . 9 7 7 9 10 7 7 7 4 20 17 13 13 22 16 17 17 17 15 14 Storage 7 | . 14 14 11 11 11 9 9 7 7 7 7 7 7 7 2 . 1 6 6 5 5 5 5 5 5 3 Processor 10 | . . . . . 5 11 17 18 15 15 19 23 19 15 9 13 13 13 13 11 11 11 11 11 12 14 Hackware 7 | . . . . . . . . 17 23 15 15 15 18 23 21 20 20 20 20 12 11 11 11 11 7 2 Protection 5 | . 3 . 19 11 10 7 9 . . 1 . . . . . . . . . . 5 5 5 5 5 3 Ballistic Gun 7 | . 14 22 22 22 6 17 17 . . . . . . . . . . . . . . . . . . . Ballistic Cannon 1 | . . . . . . . . . . . . . . . 1 6 6 6 6 5 5 5 5 5 6 . Slashing Weapon 2 | . . . . . 8 2 . 6 7 7 7 8 15 14 1 . . . . . . . . . . . Piercing Weapon 1 | . . . . . . . . . . . . . . . 3 6 5 6 6 5 3 1 5 4 . . Naked Turns . | . . . . . . . . . . . . . . . . . . . . . . . . . . . Heaviest Build 83 | 14 32 31 39 57 77 73 74 20 16 18 17 18 18 18 24 24 43 43 43 58 61 61 61 69 76 83 Greatest Support 80 | 40 40 40 60 60 60 60 60 18 18 18 18 18 18 18 64 64 64 64 64 64 64 64 64 64 80 80 Greatest Overweight (x) 11 | . . . . . 1 3 1 1 . . . . . . 4 . . . . . . . . 1 1 11 Average Overweight (x) . | . . . . . . . 1 . . . . . . . . . . . . . . . . . . . Largest Inventory Capacity 20 | 8 15 15 15 20 20 20 20 20 10 10 10 10 10 10 10 5 15 15 15 15 15 15 15 15 15 15 Average Capacity 14 | 6 14 15 15 19 20 17 20 10 10 10 10 10 10 10 7 5 8 15 15 15 15 15 15 15 15 12 Most Carried 20 | 2 12 15 15 18 20 20 20 20 10 9 10 10 10 10 10 5 8 6 8 15 15 15 15 15 15 15 Average Carried 12 | 1 6 13 14 16 17 16 19 9 9 5 9 9 9 10 6 4 5 6 6 12 14 14 14 14 14 10 Final Capacity 20 | 8 15 15 15 20 20 20 20 10 10 10 10 10 10 10 5 5 15 15 15 15 15 15 15 15 15 5 Final Carried 20 | 2 12 14 15 18 20 20 20 10 5 9 10 10 10 10 2 5 6 6 8 15 15 15 15 15 14 5 Class Distribution -------------------- 33% | Scavenger-Mutant 22% | Hacker-Mutant 21% | Mutant 6% | Machinist-Mutant 6% | Hacker-Scout 5% | Commander-Mutant Dominant Class ---------------- Mutant | -10/Materials Mutant | -10/Mines Scavenger-Mutant | -9/Materials Scavenger-Mutant | -9/Mines Scavenger-Mutant | -9/Exiles Scavenger-Mutant | -8/Mines Scavenger-Mutant | -8/Materials Hacker-Mutant | -7/Factory Hacker-Mutant | -7/Waste Hacker-Mutant | -7/Factory Hacker-Scout | -7/Lower Caves Hacker-Scout | -7/Lower Caves Hacker-Scout | -7/Zion Hacker-Scout | -6/Proximity Caves Mutant | -6/Factory Hacker-Mutant | -6/Lower Caves Hacker-Mutant | -6/Lower Caves Hacker-Mutant | -6/Data Miner Hacker-Mutant | -5/Proximity Caves Machinist-Mutant | -5/Factory Machinist-Mutant | -5/Extension Commander-Mutant | -5/Cetus Commander-Mutant | -5/Archives Commander-Mutant | -5/Hub_04(d) Hacker-Mutant | -4/Factory Mutant | -4/Armory Resources | -11 -10 -10 -9 -9 -9 -8 -8 -7 -7 -7 -7 -7 -7 -6 -6 -6 -6 -6 -5 -5 -5 -5 -5 -5 -4 -4 ----------- Run | Jun Mat Min Mat Min Exi Min Mat Fac Was Fac Low Low Zio Pro Fac Low Low Dat Pro Fac Ext Cet Arc Hub Fac Arm Matter Collected 8307 | 215 203 26 1120 109 1082 575 398 227 . 340 28 . 124 163 230 218 41 . 88 304 520 156 62 220 528 1330 Remotely . | . . . . . . . . . . . . . . . . . . . . . . . . . . . Salvage Created 7434 | . 383 . 1352 95 582 527 840 252 . 352 50 . . . 413 . . . . 177 144 84 98 130 727 1228 Parts 433 | . 24 . 91 7 68 29 53 22 . 16 . . . . 23 . . . . 10 9 9 10 6 23 33 Haulers Intercepted 9 | . 1 . 4 . . . 2 1 . . . . . . . . . . . . . . . . 1 . Recyclers Shooed 2 | . . . 1 . . . . . . . . . . . . . . . . . . . . . 1 . Parts Field Recycled . | . . . . . . . . . . . . . . . . . . . . . . . . . . . Retrieved Matter . | . . . . . . . . . . . . . . . . . . . . . . . . . . . Parts Self-Destructed 5 | . . . . . . . . . . . . . . 4 . 1 . . . . . . . . . . Prevented 7 | . . . . . . . . . . . . . . 6 . 1 . . . . . . . . . . Kills | -11 -10 -10 -9 -9 -9 -8 -8 -7 -7 -7 -7 -7 -7 -6 -6 -6 -6 -6 -5 -5 -5 -5 -5 -5 -4 -4 ------- Run | Jun Mat Min Mat Min Exi Min Mat Fac Was Fac Low Low Zio Pro Fac Low Low Dat Pro Fac Ext Cet Arc Hub Fac Arm Combat Hostiles Destroyed 115 | . 11 . 24 2 4 8 11 . . 6 . . . . 5 . . . . 1 . 1 . 1 17 24 Melee 11 | . . . . . 1 . . . . 6 . . . . 2 . . . . . . . . . . 2 Guns 55 | . 11 . 24 2 . 4 8 . . . . . . . 2 . . . . . . . . . . 4 Cannons 19 | . . . . . . . . . . . . . . . 1 . . . . 1 . 1 . . 2 14 AOE 25 | . . . . . 3 4 3 . . . . . . . . . . . . . . . . . 15 . Classes Destroyed 19 | . 4 . 6 1 3 . 2 . . . . . . . 1 . . . . 1 . . . . . 1 Worker 13 | . . . 2 . . . 1 2 . . . . . . 2 . . . . . . . . 3 3 . Builder 9 | . . . . . . . 3 . . . . . . . 1 . . . . . 2 . . . 3 . Tunneler 4 | . . . 1 . . 2 . . . 1 . . . . . . . . . . . . . . . . Hauler 9 | . 1 . 4 . . . 2 1 . . . . . . . . . . . . . . . . 1 . Recycler 9 | . . . 1 . . 2 2 1 . 1 . . . . 1 . . . . 1 . . . . . . Mechanic 2 | . . . . . . . 1 . . . . . . . . . . . . . . . . . . 1 Operator 10 | . 1 . . . . . 2 1 . 1 . . . . . . . . . . 1 . 3 . 1 . Turret 1 | . . . . . 1 . . . . . . . . . . . . . . . . . . . . . Watcher 12 | . . . 4 . . . . 4 . 3 . . . . . . . . . 1 . . . . . . Swarmer 28 | . 6 . 6 . . 4 3 . . 6 . . . . 2 . . . . . . 1 . . . . Grunt 44 | . 5 . 8 1 . 2 6 . . . . . . . 2 . . . . . . . . 1 11 8 Brawler 3 | . . . 1 . . 1 1 . . . . . . . . . . . . . . . . . . . Duelist 6 | . . . . 1 . . . . . . . . . . . . . . . . . . . . . 5 Protector 1 | . . . . . . . . . . . . . . . . . . . . . . . . . . 1 Sentry 10 | . . . 9 . . . 1 . . . . . . . . . . . . . . . . . . . Hunter 3 | . . . . . . . . . . . . . . . 1 . . . . . . . . . . 2 Programmer 15 | . . . . . . . . . . . . . . . . . . . . 1 . . . . 6 8 Zionite 8 | . . . . . 8 . . . . . . . . . . . . . . . . . . . . . Z-Courier 2 | . . . . . . . . . . . . . . . . . . . . . 1 . . . 1 . Packrat 1 | . . . . . . . . . . . 1 . . . . . . . . . . . . . . . Assembled 3 | . . . . . 3 . . . . . . . . . . . . . . . . . . . . . Best Kill Streak 13 | . 4 . 6 2 3 4 8 2 . 3 . . . . 2 . . . . 1 1 1 3 3 13 4 Combat Bots Only 9 | . 4 . 6 2 3 4 3 . . 3 . . . . 2 . . . . 1 . 1 . 1 9 4 Max Kills in Single Turn 6 | . 1 . 2 1 2 4 4 1 . 1 1 . . . 1 . . . . 1 1 1 1 2 6 1 Gunslinging . | . . . . . . . . . . . . . . . . . . . . . . . . . . . Exploded 4 | . . . . . 2 4 1 . . . . . . . . . . . . . . . . . 4 . Melee 1 | . . . . . 1 . . . . 1 . . . . 1 . . . . . . . . . . 1 Uniques/NPCs Destroyed 6 | . . . . . 4 1 . . . . . . . . . . . . . . . 1 . . . . 8R-AWN (-9/Exiles) EX-BIN (-9/Exiles) EX-HEX (-9/Exiles) EX-DEC (-9/Exiles) 1C-UTU (-8/Mines) A7 (-5/Cetus) Combat | -11 -10 -10 -9 -9 -9 -8 -8 -7 -7 -7 -7 -7 -7 -6 -6 -6 -6 -6 -5 -5 -5 -5 -5 -5 -4 -4 -------- Run | Jun Mat Min Mat Min Exi Min Mat Fac Was Fac Low Low Zio Pro Fac Low Low Dat Pro Fac Ext Cet Arc Hub Fac Arm Damage Taken 13532 | . 359 . 1446 . 733 446 257 28 46 208 . . . . 1317 36 23 . 34 158 519 72 . 496 1459 5895 Core 2371 | . 49 . 118 . 95 12 . 11 46 37 . . . . 688 17 . . 17 37 . 8 . 82 128 1026 Absorbed by Shields 979 | . . . . . . . . . . . . . . . . . . . . . . 43 . 79 520 337 Redirected to Shielding 186 | . . . . . . 4 . . . . . . . . . . . . . . 82 . . . 9 91 Ignored by Resistances 157 | . . . . . . . . . . . . . . . . . . . . . . . . 157 . . Regen/Repaired (Parts) 484 | . . . 173 . . . 11 48 . . . . . . . . . . . . . . . . 252 . Core Remaining (%) 73 | 100 . 80 . . . 43 100 . . . . . . 86 . . . . 15 . . . . 87 . . Volleys Fired 838 | . 33 3 109 4 142 60 32 20 . 3 . 18 . 3 30 10 9 . 8 28 34 9 7 26 45 205 Largest 2 | . 2 2 2 2 1 2 2 1 . 1 . 1 . 1 1 1 1 . 1 1 1 1 1 1 2 2 Hottest 240 | . 70 43 46 46 30 53 53 48 . 48 . 48 . 48 48 48 48 . 48 48 48 48 48 57 105 240 Shots Fired 1042 | . 66 6 218 10 141 68 61 20 . 3 . 19 . 3 30 10 9 . 8 28 34 9 7 26 50 216 Gun 701 | . 66 6 218 10 138 67 58 15 . . . . . . 17 . . . . . . . . . . 106 Cannon 296 | . . . . . . . . 5 . 3 . 19 . 3 13 10 9 . 8 28 5 8 7 26 44 108 Launcher 15 | . . . . . 3 1 3 . . . . . . . . . . . . . . . . . 6 2 Special 30 | . . . . . . . . . . . . . . . . . . . . . 29 1 . . . . Kinetic 803 | . 33 6 218 10 138 67 58 20 . 3 . 19 . 3 30 10 9 . 8 28 5 8 7 26 44 53 Thermal 175 | . 33 . . . . . . . . . . . . . . . . . . . . . . . . 142 Explosive 15 | . . . . . 3 1 3 . . . . . . . . . . . . . . . . . 6 2 Electromagnetic 19 | . . . . . . . . . . . . . . . . . . . . . . . . . . 19 Robot Hit Streak 20 | . 8 3 20 3 5 7 7 4 . . . . . . 4 . . . . 4 20 4 4 4 10 11 Robot Miss Streak 6 | . 4 3 5 1 6 6 6 2 . . . . . . 3 . . . . 4 3 4 1 2 3 5 Penetration Max 2 | . . . . . 1 1 2 . . . . . . . . . . . . . . . . . . 1 Secondary Targets 3 | . 1 . 1 . . . 1 . . . . . . . . . . . . . . . . . . . Max Gunslinging Chain 1 | . 1 . 1 . . . 1 . . . . . . . . . . . . . . . . . . . Shots Hit Robots 674 | . 40 3 148 5 84 41 32 22 . 14 2 . . . 22 . . . . 7 38 16 9 11 24 156 Core Hits 409 | . 21 . 58 4 30 21 27 5 . 7 1 . . . 10 . . . . 4 2 5 4 24 88 98 Critical Kills 22 | . . . 1 . 3 2 9 1 . 3 . . . . 2 . . . . . . . . . . 1 Critical Parts Destroyed 30 | . 1 . . . 7 7 4 7 . 2 . . . . 2 . . . . . . . . . . . Critical Strikes 73 | . 4 . 1 . 14 12 13 9 . 5 . . . . 5 . . . . . . 3 . 1 1 5 Burn 3 | . 3 . . . . . . . . . . . . . . . . . . . . . . . . . Meltdown 1 | . . . . . . . . . . . . . . . . . . . . . . . . . . 1 Destroy 55 | . 1 . 1 . 10 12 13 9 . 5 . . . . 4 . . . . . . . . . . . Blast 4 | . . . . . . . . . . . . . . . . . . . . . . 1 . 1 1 1 Corrupt 2 | . . . . . . . . . . . . . . . . . . . . . . . . . . 2 Sever 5 | . . . . . 4 . . . . . . . . . . . . . . . . . . . . 1 Impale 3 | . . . . . . . . . . . . . . . 1 . . . . . . 2 . . . . Melee Attacks 294 | . . . . . 30 2 . 60 . 37 2 21 1 9 21 16 15 . 16 23 10 12 7 2 . 10 Impact . | . . . . . . . . . . . . . . . . . . . . . . . . . . . Slashing 177 | . . . . . 30 2 . 60 . 37 2 21 1 9 5 . . . . . . . . . . 10 Piercing 117 | . . . . . . . . . . . . . . . 16 16 15 . 16 23 10 12 7 2 . . Sneak Attacks 37 | . . . . . 1 2 . 4 . 3 1 . . . 4 . . . . 1 5 12 4 . . . Combat Hostiles . | . . . . . . . . . . . . . . . . . . . . . . . . . . . Follow-up Attacks . | . . . . . . . . . . . . . . . . . . . . . . . . . . . Damage Inflicted 23443 | . 530 49 2398 83 2287 1164 965 1204 . 1148 182 . . . 773 . . . . 275 522 750 420 1447 3271 5975 Guns 6841 | . 530 49 2383 83 732 652 611 71 . . . . . . 180 . . . . . . . . . . 1550 Cannons 4529 | . . . . . . . . . . . . . . . 113 . . . . 199 106 141 139 320 645 2866 Explosions 5594 | . . . . . 223 237 351 . . . . . . . . . . . . . . . . 1127 2522 1134 Melee 6343 | . . . . . 1332 264 . 1133 . 1148 182 . . . 480 . . . . 76 416 609 281 . . 422 Ramming 136 | . . . 15 . . 11 3 . . . . . . . . . . . . . . . . . 104 3 Kinetic 7774 | . 245 49 2383 83 732 652 611 71 . . . . . . 293 . . . . 199 106 141 139 320 645 1105 Thermal 2923 | . 285 . . . . . . . . . . . . . . . . . . . . . . . . 2638 Explosive 4467 | . . . . . 223 237 351 . . . . . . . . . . . . . . . . . 2522 1134 Electromagnetic 1800 | . . . . . . . . . . . . . . . . . . . . . . . . 1127 . 673 Impact . | . . . . . . . . . . . . . . . . . . . . . . . . . . . Slashing 4623 | . . . . . 1332 264 . 1133 . 1148 182 . . . 142 . . . . . . . . . . 422 Piercing 1720 | . . . . . . . . . . . . . . . 338 . . . . 76 416 609 281 . . . Highest Corruption 37 | . . . 4 4 4 . . . 8 8 8 3 3 . . . . . . 1 1 1 1 5 9 37 Average Corruption 6 | . . . 4 4 3 . . . 8 8 4 3 3 . . . . . . 1 1 1 1 1 7 21 Corruption Purged 10 | . . . . . 4 . . . . . 5 . . . . . . . . . . . 1 . . . Corruption Blocked 24 | . . . . . . . . . . . . . . . . . . . . . . . . 24 . . Effects 252 | . . . 31 17 42 . . . . 18 8 6 . . . . . . . 2 7 2 . 2 14 103 Message Errors 52 | . . . 5 2 11 . . . . 7 4 . . . . . . . . 1 2 . . . 3 17 Matter Fused 58 | . . . 8 5 9 . . . . 3 3 1 . . . . . . . 1 3 2 . . 4 19 Heat Flow Errors 36 | . . . 3 4 5 . . . . 4 . 1 . . . . . . . . 2 . . . 1 16 Energy Discharges 33 | . . . 5 4 5 . . . . 3 . 1 . . . . . . . . . . . . 1 14 Parts Rejected 8 | . . . 1 . . . . . . . . . . . . . . . . . . . . 1 1 5 Parts Fused 6 | . . . 1 . 3 . . . . 1 . . . . . . . . . . . . . . . 1 Data Loss (minor) 25 | . . . 2 . 8 . . . . . 1 . . . . . . . . . . . . . 2 12 Data Loss (major) 10 | . . . 3 . . . . . . . . 1 . . . . . . . . . . . 1 1 4 Misfires 5 | . . . 1 2 . . . . . . . 1 . . . . . . . . . . . . . 1 Alerts 5 | . . . 1 . . . . . . . . 1 . . . . . . . . . . . . 1 2 Misdirections 3 | . . . . . . . . . . . . . . . . . . . . . . . . . . 3 Weapon Failures 11 | . . . 1 . 1 . . . . . . . . . . . . . . . . . . . . 9 Overload Shots . | . . . . . . . . . . . . . . . . . . . . . . . . . . . Overflow Damage 1521 | . . . . . 32 102 34 423 . 415 110 . . . 122 . . . . . 116 23 19 7 24 94 Projectiles 121 | . . . . . . . . . . . . . . . . . . . . . . 1 . 7 19 94 Explosions 68 | . . . . . 32 . 34 . . . . . . . . . . . . . . . . . 2 . Melee 1332 | . . . . . . 102 . 423 . 415 110 . . . 122 . . . . . 116 22 19 . 3 . Knockbacks 21 | . . . . . . . . . . . . . . . 4 . . . . 1 . 1 . 2 5 8 Impact . | . . . . . . . . . . . . . . . . . . . . . . . . . . . Kinetic 21 | . . . . . . . . . . . . . . . 4 . . . . 1 . 1 . 2 5 8 Secondary . | . . . . . . . . . . . . . . . . . . . . . . . . . . . Self-Inflicted Damage 414 | . . . . . 49 39 . . . . . . . . . . . . . . . . . 145 108 73 Shots 11 | . . . . . 1 1 . . . . . . . . . . . . . . . . . 2 3 4 Rammed 12 | . . 1 4 . . 1 2 . . . . . . . . . . . . . . . . . 3 1 Targets Rammed 13 | . . 1 4 . . 2 2 . . . . . . . . . . . . . . . . . 3 1 Kicked . | . . . . . . . . . . . . . . . . . . . . . . . . . . . Crushed 1 | . . . . . . 1 . . . . . . . . . . . . . . . . . . . . Highest Temperature 649 | . 153 . 287 279 255 101 86 4 . 291 . 270 . 6 1 . 1 . . . 215 5 26 68 317 649 Average Temperature 63 | . 53 . 43 97 45 38 26 1 . 102 . 41 . 3 1 . 1 . . . 82 3 11 21 59 120 Received Heat Transfer 2089 | . 96 . 471 . 60 72 171 6 . . . . . . 213 9 27 . . . 60 . . 12 205 687 Effects 19 | . . . . . . . . . . 3 . . . . . . . . . . . . . . 3 13 Shutdowns 4 | . . . . . . . . . . . . . . . . . . . . . . . . . . 4 Interference 12 | . . . . . . . . . . 3 . . . . . . . . . . . . . . 3 6 Matter Decay 1 | . . . . . . . . . . . . . . . . . . . . . . . . . . 1 Damage (major) 2 | . . . . . . . . . . . . . . . . . . . . . . . . . . 2 Siege Activations . | . . . . . . . . . . . . . . . . . . . . . . . . . . . Robots Corrupted 2 | . . . . . . . . . . . . . . . . . . . . . . . . 1 . 1 Combat Hostiles 2 | . . . . . . . . . . . . . . . . . . . . . . . . 1 . 1 Parts Fried 6 | . . . . . . . . . . . . . . . . . . . . . . . . 2 . 4 Impact Corruptions 1 | . . . . . . . . . . . . . . . . . . . . . . . . . 1 . Robots Melted 3 | . . . . . . . . . . . . . . . . . . . . . . . . . . 3 Combat Hostiles 3 | . . . . . . . . . . . . . . . . . . . . . . . . . . 3 Parts Melted 11 | . 2 . . . . . . . . . . . . . . . . . . . . . . . 1 8 Heat Transferred 4650 | . 1036 . . . . . . . . . . . . . . . . . . . . . . . . 3614 Parts Sabotaged . | . . . . . . . . . . . . . . . . . . . . . . . . . . . Parts Stolen . | . . . . . . . . . . . . . . . . . . . . . . . . . . . Parts Stripped . | . . . . . . . . . . . . . . . . . . . . . . . . . . . Power Chain Reactions . | . . . . . . . . . . . . . . . . . . . . . . . . . . . Missiles Intercepted . | . . . . . . . . . . . . . . . . . . . . . . . . . . . Alert | -11 -10 -10 -9 -9 -9 -8 -8 -7 -7 -7 -7 -7 -7 -6 -6 -6 -6 -6 -5 -5 -5 -5 -5 -5 -4 -4 ------- Run | Jun Mat Min Mat Min Exi Min Mat Fac Was Fac Low Low Zio Pro Fac Low Low Dat Pro Fac Ext Cet Arc Hub Fac Arm Peak Influence 1076 | . 250 53 331 113 . 140 305 385 154 428 . . . . 394 . . . . 139 689 935 598 1076 735 573 Initial 527 | . . 53 . 92 . . 3 70 134 100 . . . . 58 . . . . . 35 385 374 209 527 359 Average 211 | . 60 23 130 48 . 32 110 231 138 272 . . . . 203 . . . . 44 230 768 553 418 441 423 Maximum Alert Level 3 | . 1 . 1 . . . 1 1 . 2 . . . . 1 . . . . . 2 3 2 3 3 2 Low Security (%) 56 | 100 94 100 64 100 . 100 81 41 100 11 . . . . 53 . . . . 100 62 . . . . . Level 1 25 | . 5 . 35 . . . 18 58 . 83 . . . . 46 . . . . . 9 8 4 62 38 38 Level 2 15 | . . . . . . . . . . 4 . . . . . . . . . . 28 10 95 19 55 61 Level 3 3 | . . . . . . . . . . . . . . . . . . . . . . 80 . 17 6 . Level 4 . | . . . . . . . . . . . . . . . . . . . . . . . . . . . Level 5 . | . . . . . . . . . . . . . . . . . . . . . . . . . . . High Security . | . . . . . . . . . . . . . . . . . . . . . . . . . . . Max Security . | . . . . . . . . . . . . . . . . . . . . . . . . . . . Squads Dispatched 37 | . 1 . . 1 . . 2 6 . 5 . . . . 2 . . . . 1 1 . . 2 7 9 Investigation 5 | . 1 . . . . . . 1 . 3 . . . . . . . . . . . . . . . . Extermination 7 | . . . . . . . . . . . . . . . . . . . . 1 . . . . 2 4 Reinforcement 14 | . . . . . . . 2 1 . 2 . . . . 2 . . . . . 1 . . . 4 2 Assault 7 | . . . . 1 . . . 1 . . . . . . . . . . . . . . . 1 1 3 Garrison 4 | . . . . . . . . 3 . . . . . . . . . . . . . . . 1 . . Intercept . | . . . . . . . . . . . . . . . . . . . . . . . . . . . Searches Triggered . | . . . . . . . . . . . . . . . . . . . . . . . . . . . Data Miner Redirects 4 | . . . . . . . . . . . . . . . . . . . . . . . . . 1 3 Construction Impeded 3 | . . . . . . . . . . . . . . . 1 . . . . . . . . . 2 . Haulers Reinforced 3 | . . . . . . . . . . 1 . . . . . . . . . . . . . . 2 . Active Scanning Responses . | . . . . . . . . . . . . . . . . . . . . . . . . . . . Cargo Convoy Interrupts . | . . . . . . . . . . . . . . . . . . . . . . . . . . . Stealth | -11 -10 -10 -9 -9 -9 -8 -8 -7 -7 -7 -7 -7 -7 -6 -6 -6 -6 -6 -5 -5 -5 -5 -5 -5 -4 -4 --------- Run | Jun Mat Min Mat Min Exi Min Mat Fac Was Fac Low Low Zio Pro Fac Low Low Dat Pro Fac Ext Cet Arc Hub Fac Arm Distress Signals 17 | . 1 . 1 . . . . . . . . . . . 2 . . . . . 1 2 . 3 4 3 Communications Jammed 15 | . . . . . . . 2 . . . . . . . . . . . . 1 . . . 1 . 11 Distress Signals 15 | . . . . . . . 2 . . . . . . . . . . . . 1 . . . 1 . 11 Times Spotted 366 | . 14 1 37 7 35 9 16 16 6 14 . . . . 20 3 2 . 2 10 26 19 5 17 44 63 Peak Tracking Total 15 | . 6 1 5 5 9 5 3 4 6 3 . . . . 4 3 2 . 2 5 7 5 2 13 15 7 Tactical Retreats 59 | . . . 2 . 22 . . 5 . 1 . . . . 9 1 2 . . 1 1 . . . 6 9 Traps | -11 -10 -10 -9 -9 -9 -8 -8 -7 -7 -7 -7 -7 -7 -6 -6 -6 -6 -6 -5 -5 -5 -5 -5 -5 -4 -4 ------- Run | Jun Mat Min Mat Min Exi Min Mat Fac Was Fac Low Low Zio Pro Fac Low Low Dat Pro Fac Ext Cet Arc Hub Fac Arm Traps Triggered 7 | . 1 . 1 . . . . 3 . . . . . . 1 . . . . . . . . . 1 . Indirectly . | . . . . . . . . . . . . . . . . . . . . . . . . . . . Trap Hack Attempts . | . . . . . . . . . . . . . . . . . . . . . . . . . . . Triggered . | . . . . . . . . . . . . . . . . . . . . . . . . . . . Disarmed . | . . . . . . . . . . . . . . . . . . . . . . . . . . . Reprogrammed . | . . . . . . . . . . . . . . . . . . . . . . . . . . . Reused . | . . . . . . . . . . . . . . . . . . . . . . . . . . . Traps Extracted . | . . . . . . . . . . . . . . . . . . . . . . . . . . . Installed . | . . . . . . . . . . . . . . . . . . . . . . . . . . . Triggered 4 | . . . . . . . . . . . . 1 . . . 3 . . . . . . . . . . Machines | -11 -10 -10 -9 -9 -9 -8 -8 -7 -7 -7 -7 -7 -7 -6 -6 -6 -6 -6 -5 -5 -5 -5 -5 -5 -4 -4 ---------- Run | Jun Mat Min Mat Min Exi Min Mat Fac Was Fac Low Low Zio Pro Fac Low Low Dat Pro Fac Ext Cet Arc Hub Fac Arm Machines Disabled 43 | . . . 2 . 15 2 2 2 . . . . . . . . . . . 1 1 2 2 9 1 4 Max in Single Turn 5 | . . . 1 . 2 1 1 1 . . . . . . . . . . . . . 1 1 5 . 1 Garrison Access 4 | . . . . . . . . 2 . 2 . . . . . . . . . . . . . . . . Network Hub 2 | . . . . . . . . . . . . . . . . . . . . . . . . 2 . . Machines Repaired . | . . . . . . . . . . . . . . . . . . . . . . . . . . . Machines Sabotaged . | . . . . . . . . . . . . . . . . . . . . . . . . . . . Overloaded Fab Kills . | . . . . . . . . . . . . . . . . . . . . . . . . . . . Hacking | -11 -10 -10 -9 -9 -9 -8 -8 -7 -7 -7 -7 -7 -7 -6 -6 -6 -6 -6 -5 -5 -5 -5 -5 -5 -4 -4 --------- Run | Jun Mat Min Mat Min Exi Min Mat Fac Was Fac Low Low Zio Pro Fac Low Low Dat Pro Fac Ext Cet Arc Hub Fac Arm Machines Accessed 72 | . 3 . 10 . 2 . 5 25 . 14 . 1 . . 2 . . 3 . 1 1 . . . 2 3 Terminals 38 | . 3 . 7 . . . 3 17 . 8 . . . . . . . . . . . . . . . . Fabricators 7 | . . . . . . . . . . 3 . . . . 1 . . . . 1 . . . . . 2 Repair Stations 6 | . . . 2 . . . 1 1 . . . . . . . . . . . . . . . . 1 1 Recycling Units 8 | . . . 1 . . . 1 3 . 1 . . . . . . . . . . 1 . . . 1 . Scanalyzers 2 | . . . . . . . . 2 . . . . . . . . . . . . . . . . . . Garrison Access 5 | . . . . . . . . 2 . 2 . . . . 1 . . . . . . . . . . . Total Hacks 221 | . 11 . 21 . 2 . 16 73 . 38 . 1 . . 7 . . 26 . 3 2 . . . 11 10 Successful 124 | . 4 . 11 . 2 . 5 37 . 19 . 1 . . 4 . . 26 . 3 2 . . . 5 5 Failed 95 | . 6 . 10 . . . 10 36 . 19 . . . . 3 . . . . . . . . . 6 5 Catastrophic 24 | . 1 . 4 . . . 3 6 . 8 . . . . 1 . . . . . . . . . . 1 Database Lockouts 2 | . 1 . . . . . 1 . . . . . . . . . . . . . . . . . . . Manual 160 | . 9 . 15 . 1 . 13 45 . 20 . . . . 14 . . . . 1 14 1 . 12 14 1 Terminals 104 | . 11 . 12 . . . 9 50 . 22 . . . . . . . . . . . . . . . . Fabricators 23 | . . . . . . . . . . 9 . . . . 5 . . . . 3 . . . . . 6 Repair Stations 24 | . . . 7 . . . 4 2 . . . . . . . . . . . . . . . . 7 4 Recycling Units 21 | . . . 2 . . . 3 5 . 5 . . . . . . . . . . 2 . . . 4 . Scanalyzers 12 | . . . . . . . . 12 . . . . . . . . . . . . . . . . . . Garrison Access 8 | . . . . . . . . 4 . 2 . . . . 2 . . . . . . . . . . . Terminal Hacks 48 | . 3 . 3 . 2 . 2 9 . 2 . 1 . . . . . 26 . . . . . . . . Record 7 | . . . . . 1 . . . . . . . . . . . . 6 . . . . . . . . Part Schematic 12 | . . . . . . . 1 1 . . . . . . . . . 10 . . . . . . . . Robot Schematic 7 | . . . . . . . . . . . . . . . . . . 7 . . . . . . . . Robot Analysis 2 | . 1 . 1 . . . . . . . . . . . . . . . . . . . . . . . Prototype ID Bank 4 | . 1 . . . . . . . . . . . . . . . . 3 . . . . . . . . Open Door 1 | . . . . . . . . . . . . 1 . . . . . . . . . . . . . . Branch Access Points 2 | . . . . . . . . 1 . 1 . . . . . . . . . . . . . . . . Terminal Index 2 | . . . . . . . . 1 . 1 . . . . . . . . . . . . . . . . Scanalyzer Index 1 | . . . . . . . . 1 . . . . . . . . . . . . . . . . . . Unreport Threat 1 | . . . 1 . . . . . . . . . . . . . . . . . . . . . . . Locate Traps 4 | . 1 . 1 . . . . 2 . . . . . . . . . . . . . . . . . . Hauler Manifests 1 | . . . . . . . . 1 . . . . . . . . . . . . . . . . . . Zone Layout 3 | . . . . . . . 1 2 . . . . . . . . . . . . . . . . . . Derelict Proto ID Bank 1 | . . . . . 1 . . . . . . . . . . . . . . . . . . . . . Fabricator Hacks 15 | . . . . . . . . . . 5 . . . . 4 . . . . 2 . . . . . 4 Network Status 2 | . . . . . . . . . . 1 . . . . . . . . . . . . . . . 1 Load Schematic 8 | . . . . . . . . . . 4 . . . . 2 . . . . 1 . . . . . 1 Build 5 | . . . . . . . . . . . . . . . 2 . . . . 1 . . . . . 2 Repair Station Hacks 12 | . . . 5 . . . 2 2 . . . . . . . . . . . . . . . . 2 1 Scan Component 6 | . . . 3 . . . 1 1 . . . . . . . . . . . . . . . . 1 . Repair 5 | . . . 2 . . . 1 1 . . . . . . . . . . . . . . . . 1 . Refit 1 | . . . . . . . . . . . . . . . . . . . . . . . . . . 1 Recycling Unit Hacks 4 | . . . . . . . . 1 . 1 . . . . . . . . . . 1 . . . 1 . Retrieve Components 4 | . . . . . . . . 1 . 1 . . . . . . . . . . 1 . . . 1 . Scanalyzer 8 | . . . . . . . . 8 . . . . . . . . . . . . . . . . . . Insert Component 4 | . . . . . . . . 4 . . . . . . . . . . . . . . . . . . Analyze 4 | . . . . . . . . 4 . . . . . . . . . . . . . . . . . . Garrison Access Hacks 3 | . . . . . . . . 1 . 2 . . . . . . . . . . . . . . . . Seal Access 3 | . . . . . . . . 1 . 2 . . . . . . . . . . . . . . . . Unauthorized Hacks 34 | . 1 . 3 . . . 1 16 . 9 . . . . . . . . . 1 1 . . . 2 . Terminals 20 | . 1 . 1 . . . 1 13 . 4 . . . . . . . . . . . . . . . . Track 3 | . . . . . . . . 2 . 1 . . . . . . . . . . . . . . . . Assimilate 4 | . . . . . . . . 2 . 2 . . . . . . . . . . . . . . . . Botnet 9 | . 1 . . . . . . 8 . . . . . . . . . . . . . . . . . . Operators 4 | . . . 1 . . . 1 1 . 1 . . . . . . . . . . . . . . . . Fabricators 4 | . . . . . . . . . . 3 . . . . . . . . . 1 . . . . . . Prioritize 1 | . . . . . . . . . . . . . . . . . . . . 1 . . . . . . Recompile 3 | . . . . . . . . . . 3 . . . . . . . . . . . . . . . . Repair Stations . | . . . . . . . . . . . . . . . . . . . . . . . . . . . Recycling Units 10 | . . . 2 . . . . 3 . 2 . . . . . . . . . . 1 . . . 2 . Reject 5 | . . . 1 . . . . 1 . 1 . . . . . . . . . . 1 . . . 1 . Recyclers 4 | . . . 1 . . . . 1 . 1 . . . . . . . . . . . . . . 1 . Mask 1 | . . . . . . . . 1 . . . . . . . . . . . . . . . . . . Scanalyzers . | . . . . . . . . . . . . . . . . . . . . . . . . . . . Garrison Access . | . . . . . . . . . . . . . . . . . . . . . . . . . . . Data Cores Recovered 1 | . 1 . . . . . . . . . . . . . . . . . . . . . . . . . Used . | . . . . . . . . . . . . . . . . . . . . . . . . . . . Hacking Detections 48 | . 3 . 8 . . . 3 18 . 9 . . . . 2 . . . . 1 . . . . 2 2 Full Trace Events 1 | . . . . . . . . 1 . . . . . . . . . . . . . . . . . . Feedback Events . | . . . . . . . . . . . . . . . . . . . . . . . . . . . Feedback Blocked . | . . . . . . . . . . . . . . . . . . . . . . . . . . . Robot Schematics Acquired 11 | . . . . . . . . . . . . . 4 . . . . 7 . . . . . . . . Robots Built . | . . . . . . . . . . . . . . . . . . . . . . . . . . . Authchips . | . . . . . . . . . . . . . . . . . . . . . . . . . . . Time . | . . . . . . . . . . . . . . . . . . . . . . . . . . . Total Robot Build Rating . | . . . . . . . . . . . . . . . . . . . . . . . . . . . Part Schematics Acquired 68 | . . . . . . . 1 4 . . . . 14 . 11 . . 10 . . 12 . . . 16 . Parts Built 8 | . . . . . . . . . . . . . . . 4 . . . . 1 . . . . . 3 Authchips 4 | . . . . . . . . . . . . . . . 2 . . . . 1 . . . . . 1 Time 434 | . . . . . . . . . . . . . . . 84 . . . . 169 . . . . . 181 Total Part Build Rating 63 | . . . . . . . . . . . . . . . 32 . . . . 6 . . . . . 25 Parts Repaired 5 | . . . 2 . . . 1 1 . . . . . . . . . . . . . . . . 1 . Time 227 | . . . 52 . . . 108 13 . . . . . . . . . . . . . . . . 54 . Parts Recycled . | . . . . . . . . . . . . . . . . . . . . . . . . . . . Recycled Matter . | . . . . . . . . . . . . . . . . . . . . . . . . . . . Retrieved Matter . | . . . . . . . . . . . . . . . . . . . . . . . . . . . Retrieved Components 5 | . . . . . . . . 1 . 1 . . . . . . . . . . 1 . . . 2 . Parts Scanalyzed 3 | . . . . . . . . 3 . . . . . . . . . . . . . . . . . . Part Schematics Acquired 3 | . . . . . . . . 3 . . . . . . . . . . . . . . . . . . Parts Damaged . | . . . . . . . . . . . . . . . . . . . . . . . . . . . Bothacking | -11 -10 -10 -9 -9 -9 -8 -8 -7 -7 -7 -7 -7 -7 -6 -6 -6 -6 -6 -5 -5 -5 -5 -5 -5 -4 -4 ------------ Run | Jun Mat Min Mat Min Exi Min Mat Fac Was Fac Low Low Zio Pro Fac Low Low Dat Pro Fac Ext Cet Arc Hub Fac Arm Used RIF Installer . | . . . . . . . . . . . . . . . . . . . . . . . . . . . Robots Hacked 3 | . . . . . . . . . . . . . . . . . . . . . 2 1 . . . . Non-combat 1 | . . . . . . . . . . . . . . . . . . . . . 1 . . . . . Combat 2 | . . . . . . . . . . . . . . . . . . . . . 1 1 . . . . Robot Hacks Applied 3 | . . . . . . . . . . . . . . . . . . . . . 2 1 . . . . parse_system 3 | . . . . . . . . . . . . . . . . . . . . . 2 1 . . . . Relay Couplers Released . | . . . . . . . . . . . . . . . . . . . . . . . . . . . Fabnet Peak Effective % . | . . . . . . . . . . . . . . . . . . . . . . . . . . . Robots Rewired 18 | . . . . . . . . . . . . . . . . . . . . . 18 . . . . . Allies Hacked . | . . . . . . . . . . . . . . . . . . . . . . . . . . . Hacks Repelled . | . . . . . . . . . . . . . . . . . . . . . . . . . . . Allies | -11 -10 -10 -9 -9 -9 -8 -8 -7 -7 -7 -7 -7 -7 -6 -6 -6 -6 -6 -5 -5 -5 -5 -5 -5 -4 -4 -------- Run | Jun Mat Min Mat Min Exi Min Mat Fac Was Fac Low Low Zio Pro Fac Low Low Dat Pro Fac Ext Cet Arc Hub Fac Arm Total Allies 63 | . . 1 . 4 . . . 1 . 1 . . 4 . . . . . 1 . 37 5 . 4 5 . Largest Group 22 | . . 1 . 4 . . . 1 1 1 1 1 4 4 . . . . 1 . 22 19 10 9 2 . Highest-Rated Group 975 | . . 31 . 71 . . . 26 26 10 10 10 152 152 . . . . 96 . 753 975 613 643 206 . Highest-Rated Ally 159 | . . 31 . 31 . . . 26 26 10 10 10 41 41 . . . . 96 . 159 146 96 96 103 . Zionite Dispatches 10 | . . . . . . . . . . . . . . . 1 . . . . . 4 . . 2 3 . Heavy 1 | . . . . . . . . . . . . . . . . . . . . . . . . . 1 . Light 1 | . . . . . . . . . . . . . . . . . . . . . 1 . . . . . Recon 1 | . . . . . . . . . . . . . . . 1 . . . . . . . . . . . Hacker 1 | . . . . . . . . . . . . . . . . . . . . . . . . 1 . . Explosive Resupply 3 | . . . . . . . . . . . . . . . . . . . . . 3 . . . . . Melee Resupply 1 | . . . . . . . . . . . . . . . . . . . . . . . . . 1 . Defense Resupply 1 | . . . . . . . . . . . . . . . . . . . . . . . . 1 . . Hover Resupply 1 | . . . . . . . . . . . . . . . . . . . . . . . . . 1 . Total Orders 53 | . . . . . . . . . . . . . . . . 5 2 . . 1 14 3 . 12 14 2 STAY 4 | . . . . . . . . . . . . . . . . . . . . . 1 . . 2 1 . ROAM 2 | . . . . . . . . . . . . . . . . . . . . . . . . 2 . . FOLLOW 7 | . . . . . . . . . . . . . . . . . . . . . 2 . . 3 2 . DROP 6 | . . . . . . . . . . . . . . . . . . . . . 3 . . 1 2 . EXPLORE 15 | . . . . . . . . . . . . . . . . 5 1 . . . 3 . . 1 4 1 RETURN 19 | . . . . . . . . . . . . . . . . . 1 . . 1 5 3 . 3 5 1 Ally Attacks 589 | . . 1 . 37 . . . . . . . . . 19 . . . . 6 22 229 143 33 80 19 . Total Damage 15253 | . . 20 . 468 . . . . . . . . . 292 . . . . 454 310 4976 3320 1560 3137 716 . Kills 93 | . . . . 5 . . . . . . . . . 5 . . . . . 1 29 26 7 18 2 . Allies Corrupted . | . . . . . . . . . . . . . . . . . . . . . . . . . . . Allies Melted 1 | . . . . . . . . . . . . . . . . . . . 1 . . . . . . . Intel | -11 -10 -10 -9 -9 -9 -8 -8 -7 -7 -7 -7 -7 -7 -6 -6 -6 -6 -6 -5 -5 -5 -5 -5 -5 -4 -4 ------- Run | Jun Mat Min Mat Min Exi Min Mat Fac Was Fac Low Low Zio Pro Fac Low Low Dat Pro Fac Ext Cet Arc Hub Fac Arm Robot Analysis Total 2 | . 1 . 1 . . . . . . . . . . . . . . . . . . . . . . . Derelict Logs Recovered 13 | . . 3 . 1 . . . . . . 1 1 1 . . 3 2 . 1 . . . . . . . Drone Launches 31 | . . . . . . . . . . . . . . . . 9 . . . 2 7 4 . 3 5 1 Drone Recoveries 29 | . . . . . . . . . . . . . . . . 7 . . . 2 7 4 . 3 5 1 Zionite Intel Received 6 | . . . . . . . . . . . . . . . 3 . . . . . 1 . . 1 1 . Branch Access 1 | . . . . . . . . . . . . . . . 1 . . . . . . . . . . . Prototype Stockpiles 1 | . . . . . . . . . . . . . . . 1 . . . . . . . . . . . Component Schematics 1 | . . . . . . . . . . . . . . . . . . . . . . . . . 1 . Prototype Schematics 2 | . . . . . . . . . . . . . . . 1 . . . . . 1 . . . . . Active Terminals 1 | . . . . . . . . . . . . . . . . . . . . . . . . 1 . . Exploration | -11 -10 -10 -9 -9 -9 -8 -8 -7 -7 -7 -7 -7 -7 -6 -6 -6 -6 -6 -5 -5 -5 -5 -5 -5 -4 -4 ------------- Run | Jun Mat Min Mat Min Exi Min Mat Fac Was Fac Low Low Zio Pro Fac Low Low Dat Pro Fac Ext Cet Arc Hub Fac Arm Turns Passed 21577 | 75 615 899 1916 909 2683 1507 912 1187 31 571 340 418 528 313 724 779 459 54 779 901 1111 477 114 351 1059 1865 Spaces Moved 18527 | 42 299 549 882 546 1164 826 284 2214 85 1285 537 789 1032 458 982 765 526 76 798 924 891 232 78 152 1018 1093 Core 35 | 3 . . . . . 2 . . . . . . . . 27 . . . . . . . . . . 3 Treads 4246 | 39 299 549 882 546 1164 483 284 . . . . . . . . . . . . . . . . . . . Legs 504 | . . . . . . . . . . . . . . . . . . . . . . . . . . 504 Wheels . | . . . . . . . . . . . . . . . . . . . . . . . . . . . Hover 6180 | . . . . . . 15 . . . . . . . . 119 765 526 76 798 924 891 232 78 152 1018 586 Flight 7562 | . . . . . . 326 . 2214 85 1285 537 789 1032 458 836 . . . . . . . . . . . Fastest Speed 32 | 50 160 160 160 160 160 34 240 34 34 34 34 34 34 34 32 71 71 71 71 71 71 71 71 71 58 63 Average Speed 83 | 152 160 160 160 160 193 155 241 34 34 34 34 34 34 34 44 71 71 71 71 71 71 71 71 72 61 110 Slowest Speed 600 | 160 160 160 160 160 240 320 243 114 34 34 34 34 34 34 275 71 71 71 71 71 71 71 71 141 144 600 Overloaded Moves . | . . . . . . . . . . . . . . . . . . . . . . . . . . . Propulsion Burnouts . | . . . . . . . . . . . . . . . . . . . . . . . . . . . Robots Hopped 8 | . . . . . . . . 3 . 3 . . . . 2 . . . . . . . . . . . Cave-ins Triggered . | . . . . . . . . . . . . . . . . . . . . . . . . . . . Exploration Rate (%) 61 | 4 58 92 82 97 88 92 30 54 77 33 79 69 88 57 22 88 84 68 82 19 89 58 71 31 25 14 Regions Visited 26 Branch Regions 17 Pre-discovered Areas 7 | . . . . 1 1 . . . . . 1 . 2 . . . 1 1 . . . . . . . . Known Exits Taken 17 | . . . 1 . . . . . . 1 1 1 1 1 1 1 1 1 1 1 1 1 1 1 1 . Unknown Exits Taken 7 | 1 1 1 . 1 1 1 1 . . . . . . . . . . . . . . . . . . . Scrap Searched 16 | . . 2 . 1 . 1 . . . . 2 . 4 1 . 2 2 . 1 . . . . . . . Spaces Dug 211 | . . . . . 2 15 . 49 . 12 . 23 . 8 12 17 15 . 18 24 1 . . 2 13 . Terrain Destroyed 822 | . . . . . 57 32 40 54 . 14 . 25 . 8 17 18 22 . 24 35 1 . . 348 77 50 Melee 169 | . . . . . 1 . . 45 . 12 . 20 . 8 12 15 15 . 16 22 1 . . 2 . . Projectile 157 | . . . . . 34 16 11 9 . 2 . 5 . . 3 3 7 . 8 13 . . . 4 20 22 AOE 486 | . . . . . 16 15 28 . . . . . . . . . . . . . . . . 342 57 28 Terrain Rammed . | . . . . . . . . . . . . . . . . . . . . . . . . . . . Walls Destroyed . | . . . . . . . . . . . . . . . . . . . . . . . . . . . Machines Disabled . | . . . . . . . . . . . . . . . . . . . . . . . . . . . Actions | -11 -10 -10 -9 -9 -9 -8 -8 -7 -7 -7 -7 -7 -7 -6 -6 -6 -6 -6 -5 -5 -5 -5 -5 -5 -4 -4 --------- Run | Jun Mat Min Mat Min Exi Min Mat Fac Was Fac Low Low Zio Pro Fac Low Low Dat Pro Fac Ext Cet Arc Hub Fac Arm Total 23129 | 50 368 566 1194 573 1435 980 456 2562 85 1374 691 900 1209 602 1201 958 572 75 970 1092 1335 511 116 361 1390 1503 Wait 2724 | . 21 1 135 16 37 40 111 176 . 36 151 63 159 132 116 165 14 . 145 97 347 245 17 162 252 86 Move 18487 | 41 298 548 881 545 1163 825 283 2208 84 1279 536 788 1031 457 977 764 525 75 797 923 890 231 77 151 1017 1093 Hop 7 | . . . . . . . . 3 . 2 . . . . 2 . . . . . . . . . . . Pick Up 163 | 1 10 6 11 3 17 12 10 3 . 4 1 . 4 . 3 3 1 . 3 9 14 3 2 5 13 25 Fast Attach 128 | 7 1 1 11 . 6 17 1 7 1 4 1 2 3 . 15 . 1 . . 2 2 1 2 1 6 36 Attach 87 | . . . 7 . 12 . 2 6 . 2 . 3 2 . 15 . 2 . . 2 3 . . . 9 22 Detach 62 | 1 . . 1 . 10 7 1 9 . 4 . 3 3 . 7 . 2 . . 1 1 . . . 2 10 Swap 130 | . 4 1 16 4 5 3 5 19 . 2 . 2 1 2 5 . 2 . . 5 19 4 . 8 20 3 Drop 149 | . 1 5 19 1 13 12 9 15 . 1 . 1 5 . 10 . 1 . 1 2 15 6 4 6 10 12 Fire 838 | . 33 3 109 4 142 60 32 20 . 3 . 18 . 3 30 10 9 . 8 28 34 9 7 26 45 205 Melee 292 | . . . . . 30 2 . 60 . 37 2 20 1 8 21 16 15 . 16 23 10 12 7 2 . 10 Ram 4 | . . . . . . . . . . . . . . . . . . . . . . . . . 3 1 Kick . | . . . . . . . . . . . . . . . . . . . . . . . . . . . Crush 9 | . . 1 4 . . 2 2 . . . . . . . . . . . . . . . . . . . Escape Stasis 49 | . . . . . . . . 36 . . . . . . . . . . . . . . . . 13 . Rewire . | . . . . . . . . . . . . . . . . . . . . . . . . . . . Trap . | . . . . . . . . . . . . . . . . . . . . . . . . . . . Miscellaneous . | . . . . . . . . . . . . . . . . . . . . . . . . . . . Route ------- -11/Junkyard -10/Materials (discovered 4 exits: *Mat x2 / [*Min x2]) -10/Mines (discovered 3 exits: *Mat x2 / [*Sub]) -9/Materials (discovered 5 exits: *Mat x2 / *Min x2 / *Sto) -9/Mines (discovered 3 exits: *Mat x2 / *Exi) -9/Exiles -8/Mines (discovered 2 exits: *Mat x2) -8/Materials -7/Factory (discovered 4 exits: *Fac x2 / *Low x2) -7/Waste -7/Factory (discovered 3 exits: *Fac / *Low x2) -7/Lower Caves -7/Lower Caves (discovered 2 exits: *Fac / *Zio) -7/Zion (discovered 2 exits: Dee / *Pro) -6/Proximity Caves -6/Factory (discovered 3 exits: Fac / *Low x2) -6/Lower Caves -6/Lower Caves (discovered 2 exits: *Fac / *Dat) -6/Data Miner -5/Proximity Caves -5/Factory (discovered 2 exits: Fac / *Ext) -5/Extension (discovered 2 exits: *Fac / *Cet) -5/Cetus (discovered 2 exits: *Fac / *Arc) -5/Archives -5/Hub_04(d) (discovered 4 exits: *Fac x4) -4/Factory (discovered 7 exits: *Res x4 / *Upp x2 / *Arm) -4/Armory History --------- Turn | Location | Event 14 | -11/Junkyard | Discovered new exit (range 16) 76 | -11/Junkyard | Entered Materials 302 | -10/Materials | Build established: Mutant 365 | -10/Materials | Central database locked down 375 | -10/Materials | Discovered new exit (range 8) 549 | -10/Materials | Discovered new exit (range 7) 614 | -10/Materials | Discovered new exit (range 5) 654 | -10/Materials | Discovered new exit (range 16) 691 | -10/Materials | Entered Mines 833 | -10/Mines | Received a Mining Laser from a helpful Derelict 900 | -10/Mines | Discovered new exit (range 7) 1001 | -10/Mines | Joined a pair of Derelicts in attacking an 0b10 outpost 1009 | -10/Mines | Learned 8 Materials zone layouts 1109 | -10/Mines | Discovered new exit (range 6) 1193 | -10/Mines | Discovered new exit (range 4) 1199 | -10/Mines | Received a Rocket Launcher from a helpful Derelict 1229 | -10/Mines | Learned Materials emergency access door positions 1255 | -10/Mines | Learned Materials emergency access door positions 1590 | -10/Mines | Entered Materials 1590 | -9/Materials | Evolved 2 slots: Propulsion x1, Utility x1 1591 | -9/Materials | Identified exit to Storage 1591 | -9/Materials | Identified exit to Mines 1657 | -9/Materials | Repaired Lgt. Treads 2185 | -9/Materials | Discovered exit to Mines (range 16) 2341 | -9/Materials | Build established: Scavenger-Mutant 2529 | -9/Materials | Repaired Lgt. Treads 2704 | -9/Materials | Discovered new exit (range 14) 2932 | -9/Materials | Build established: Mutant 3170 | -9/Materials | Discovered new exit (range 7) 3299 | -9/Materials | Build established: Scavenger-Mutant 3506 | -9/Materials | Entered Mines 3562 | -9/Mines | Assisted by bots powering up and referring to "LRC-V3" 3750 | -9/Mines | Found a damaged Exp. Sensor Array with a note attached 3754 | -9/Mines | Found Prototype Device 3782 | -9/Mines | Identified Exp. Sensor Array 3981 | -9/Mines | Assembled infested the area 4120 | -9/Mines | Discovered new exit (range 11) 4142 | -9/Mines | Learned location of Zion (-7) 4200 | -9/Mines | Discovered new exit (range 10) 4332 | -9/Mines | Met a Derelict testing a Signal Generator 4409 | -9/Mines | Deemed a non-threat by the Exiles lab entrance 4409 | -9/Mines | Discovered new exit (range 5) 4415 | -9/Mines | Entered Exiles 4456 | -9/Exiles | Met 8R-AWN 4482 | -9/Exiles | Met EX-HEX 4580 | -9/Exiles | Met EX-DEC 4671 | -9/Exiles | Discovered new exit (range 10) 4786 | -9/Exiles | Met EX-BIN 4808 | -9/Exiles | Aligned with FarCom system 4810 | -9/Exiles | Given EX-Vault access code 4847 | -9/Exiles | Opened EX-Vault 4859 | -9/Exiles | Found Longsword +1 4888 | -9/Exiles | Found PSU Rigger 4921 | -9/Exiles | Warned to stay clear of 0b10 Research branches 5473 | -9/Exiles | Attacked by the Exiles 5591 | -9/Exiles | Destroyed 8R-AWN 5600 | -9/Exiles | Found Prototype Ballistic Gun 5600 | -9/Exiles | Identified 8R-AWN's Boregun 5617 | -9/Exiles | Lost 3 parts (1p1n1u) 5789 | -9/Exiles | Core integrity fell below 50% 6236 | -9/Exiles | Destroyed EX-BIN 6262 | -9/Exiles | Found Prototype Device 6262 | -9/Exiles | Identified System Purifier 6278 | -9/Exiles | Destroyed EX-HEX 6339 | -9/Exiles | Destroyed EX-DEC 6777 | -9/Exiles | Found Prototype Processor 7098 | -9/Exiles | Entered Mines 7133 | -8/Mines | Build established: Mutant 7156 | -8/Mines | 1C-UTU came to Exiles' defense 7379 | -8/Mines | Destroyed 1C-UTU 7387 | -8/Mines | Found Prototype Slashing Weapon 7387 | -8/Mines | Identified 1C-UTU's Sword "Choppy" 7524 | -8/Mines | Build established: Scavenger-Mutant 7616 | -8/Mines | Found Prototype Protection 7616 | -8/Mines | Identified 1C-UTU's Buckler 7956 | -8/Mines | Discovered new exit (range 5) 8255 | -8/Mines | Discovered new exit (range 8) 8605 | -8/Mines | Entered Materials 8605 | -8/Materials | Evolved 2 slots: Utility x2 8646 | -8/Materials | Identified Exp. Core Analyzer 8819 | -8/Materials | Repaired Exp. Sensor Array 9358 | -8/Materials | Discovered new exit (range 14) 9500 | -8/Materials | Central database locked down 9517 | -8/Materials | Entered Factory 9517 | -7/Factory | Evolved 2 slots: Utility x2 9671 | -7/Factory | Identified exit to Lower Caves 9951 | -7/Factory | Discovered new exit (range 12) 10199 | -7/Factory | Build established: Hacker-Mutant 10343 | -7/Factory | Garrison activated, responded to threat 10511 | -7/Factory | Repaired Lgt. Armor Plating 10549 | -7/Factory | Discovered new exit (range 18) 10704 | -7/Factory | Manually triggered Chute Trap 10704 | -7/Factory | Sucked down chute 10704 | -7/Factory | Entered Waste 10705 | -7/Waste | 1 allies followed down the chute 10710 | -7/Waste | Spotted C-40 Crusher 10719 | -7/Waste | EMP discharged 10719 | -7/Waste | Spotted C-40 Crusher 10720 | -7/Waste | Spotted C-40 Crusher 10723 | -7/Waste | Spotted C-40 Crusher 10724 | -7/Waste | Spotted C-40 Crusher 10725 | -7/Waste | Spotted C-40 Crusher 10728 | -7/Waste | Discovered new exit (range 14) 10730 | -7/Waste | Crushed by Compactor (1 part destroyed, 1 dropped) 10734 | -7/Waste | Identified exit to Factory 10735 | -7/Waste | Entered Factory 10928 | -7/Factory | Discovered new exit (range 12) 11306 | -7/Factory | Entered Lower Caves 11306 | -7/Lower Caves | Accompanied by 1 ally 11530 | -7/Lower Caves | Learned location of Extension (-5) 11589 | -7/Lower Caves | Discovered new exit (range 11) 11592 | -7/Lower Caves | Identified exit to Lower Caves 11646 | -7/Lower Caves | Entered another Lower Caves area 11646 | -7/Lower Caves | Accompanied by 1 ally 11671 | -7/Lower Caves | Discovered new exit (range 15) 11798 | -7/Lower Caves | Build established: Hacker-Scout 11998 | -7/Lower Caves | Learned location of 1 exit from Factory 12028 | -7/Lower Caves | Discovered new exit (range 15) 12064 | -7/Lower Caves | Identified exit to Zion 12064 | -7/Lower Caves | Entered Zion 12073 | -7/Zion | Given A8's code to call for help 12074 | -7/Zion | Found CR-A16's Pointy Stick 12088 | -7/Zion | System corruption cleaned by Quarantine Array 12112 | -7/Zion | Discovered new exit (range 15) 12115 | -7/Zion | Identified exit to Deep Caves 12199 | -7/Zion | Given the Hacking Drone Bay 12250 | -7/Zion | Learned location of Warlord (-4) 12321 | -7/Zion | Found Prototype Device 12321 | -7/Zion | Identified Hacking Drone Bay 12354 | -7/Zion | Imprinted 12356 | -7/Zion | Declared Zion's savior 12422 | -7/Zion | Found GAL Module 12431 | -7/Zion | Identified exit to Proximity Caves 12592 | -7/Zion | Entered Proximity Caves 12592 | -6/Proximity Caves | Accompanied by 4 allies 12871 | -6/Proximity Caves | Discovered new exit (range 16) 12905 | -6/Proximity Caves | Identified exit to Factory 12905 | -6/Proximity Caves | Entered Factory 12905 | -6/Factory | Evolved 2 slots: Propulsion x1, Utility x1 12906 | -6/Factory | Identified exit to Factory 13195 | -6/Factory | Core integrity fell below 50% 13259 | -6/Factory | Lost 5 parts (3n2u) 13306 | -6/Factory | Retrieved Zion intel report: Branch Access 13306 | -6/Factory | Identified exit to Lower Caves 13315 | -6/Factory | Retrieved Zion intel report: Prototype Schematics 13370 | -6/Factory | Fabricated Cmb. Antigrav System? 13444 | -6/Factory | Core integrity fell below 20% 13463 | -6/Factory | Lost 3 parts (1p1n1w) 13477 | -6/Factory | Build established: Mutant 13493 | -6/Factory | Fabricated Cmb. Antigrav System? 13617 | -6/Factory | Retrieved Zion intel report: Prototype Stockpiles 13618 | -6/Factory | Zion Recon squad teleported in 13629 | -6/Factory | Entered Lower Caves 13737 | -6/Lower Caves | Learned location of 1 exit from Factory 13924 | -6/Lower Caves | Build established: Hacker-Mutant 13950 | -6/Lower Caves | Learned 4 Factory zone layouts 13956 | -6/Lower Caves | Learned location of 1 exit from Factory 14404 | -6/Lower Caves | Discovered new exit (range 3) 14405 | -6/Lower Caves | Identified exit to Lower Caves 14408 | -6/Lower Caves | Entered another Lower Caves area 14408 | -6/Lower Caves | Accompanied by 2 allies 14409 | -6/Lower Caves | Discovered exit to Factory (range 13) 14413 | -6/Lower Caves | Identified exit to Data Miner 14786 | -6/Lower Caves | Attracted the attention of an 0b10 base 14867 | -6/Lower Caves | Entered Data Miner 14867 | -6/Data Miner | Discovered new exit (range 6) 14881 | -6/Data Miner | Met Data Miner 14894 | -6/Data Miner | Learned location of Section 7 (-2) 14894 | -6/Data Miner | Acquired the access code to Warlord's prototype stash 14904 | -6/Data Miner | Received God Mode back door access code from Data Miner 14920 | -6/Data Miner | Identified exit to Proximity Caves 14921 | -6/Data Miner | Entered Proximity Caves 15018 | -5/Proximity Caves | Escorted by Enhanced Grunt 15570 | -5/Proximity Caves | Learned Factory stockpile data 15693 | -5/Proximity Caves | Discovered exit to Factory (range 12) 15700 | -5/Proximity Caves | Entered Factory 15700 | -5/Factory | Evolved 2 slots: Utility x2 15701 | -5/Factory | Identified exit to Extension 15701 | -5/Factory | Identified exit to Factory 15940 | -5/Factory | Fabricated Combat Drone Bay? 16558 | -5/Factory | Build established: Machinist-Mutant 16601 | -5/Factory | Entered Extension 16624 | -5/Extension | Rescued a captive Derelict 16654 | -5/Extension | Rescued a captive Derelict 16655 | -5/Extension | Rescued a captive Derelict 16765 | -5/Extension | Retrieved Zion intel report: Prototype Schematics 16766 | -5/Extension | Zion Light squad teleported in 16772 | -5/Extension | Zion Explosive Resupply teleported in 16777 | -5/Extension | Found Prototype Launcher 16787 | -5/Extension | Identified Scatter Rocket Array 16789 | -5/Extension | Found Prototype Launcher 16798 | -5/Extension | Identified Gui. Missile Launcher 16817 | -5/Extension | Rescued a captive Derelict 16852 | -5/Extension | Found Prototype Protection 16852 | -5/Extension | Identified Zio. Weapon Casing 16871 | -5/Extension | Found Zio. Weapon Casing 16876 | -5/Extension | Rescued a captive Derelict 16876 | -5/Extension | Rescued a captive Derelict 16889 | -5/Extension | Rescued a captive Derelict 16893 | -5/Extension | Rescued a captive Derelict 17237 | -5/Extension | Spotted B-75 Beast 17242 | -5/Extension | Spotted B-75 Beast 17248 | -5/Extension | Allies destroyed B-75 Beast 17269 | -5/Extension | Allies destroyed B-75 Beast 17318 | -5/Extension | Rescued a captive Derelict 17319 | -5/Extension | Rescued a captive Derelict 17419 | -5/Extension | Zion Explosive Resupply teleported in 17430 | -5/Extension | Zion Explosive Resupply teleported in 17460 | -5/Extension | Rescued A7 17565 | -5/Extension | Rescued a captive Derelict 17566 | -5/Extension | Rescued a captive Derelict 17606 | -5/Extension | Found Prototype Launcher 17645 | -5/Extension | Identified Rocket Array 17669 | -5/Extension | Build established: Commander-Mutant 17673 | -5/Extension | Discovered exit to Factory (range 10) 17674 | -5/Extension | Discovered new exit (range 6) 17687 | -5/Extension | Identified exit to Cetus 17712 | -5/Extension | Entered Cetus 17712 | -5/Cetus | Accompanied by 19 allies (A7) 17717 | -5/Cetus | Acquired a Cetus Manufacturing Module code from A7 17738 | -5/Cetus | Spotted Cetus Guard 17738 | -5/Cetus | Spotted Cetus Guard 17739 | -5/Cetus | Spotted Cetus Guard 17739 | -5/Cetus | Spotted Cetus Guard 17753 | -5/Cetus | Allies destroyed Cetus Guard 17754 | -5/Cetus | Allies destroyed Cetus Guard 17754 | -5/Cetus | Allies destroyed Cetus Guard 17755 | -5/Cetus | Allies destroyed Cetus Guard 17801 | -5/Cetus | Started Cetus Manufacturing Module 17812 | -5/Cetus | Discovered new exit (range 16) 17826 | -5/Cetus | Manufactured an Enhanced Grunt 17851 | -5/Cetus | Manufactured an Enhanced Grunt 17876 | -5/Cetus | Manufactured an Enhanced Grunt 17901 | -5/Cetus | Manufactured an Enhanced Grunt 17926 | -5/Cetus | Manufactured an Enhanced Grunt 17969 | -5/Cetus | Spotted Cetus Guard 17969 | -5/Cetus | Spotted Cetus Guard 17972 | -5/Cetus | Spotted Cetus Guard 17980 | -5/Cetus | Allies destroyed Cetus Guard 17986 | -5/Cetus | Allies destroyed Cetus Guard 17986 | -5/Cetus | Spotted Cetus Guard 17988 | -5/Cetus | Allies destroyed Cetus Guard 17991 | -5/Cetus | Allies destroyed Cetus Guard 17996 | -5/Cetus | Discovered exit to Factory (range 16) 18000 | -5/Cetus | Scared off Revision 17 18101 | -5/Cetus | Destroyed A7 18102 | -5/Cetus | Extracted ID and sensor layout for unrecognized location from A7's data core 18164 | -5/Cetus | Identified exit to Archives 18189 | -5/Cetus | Entered Archives 18189 | -5/Archives | Accompanied by 10 allies 18235 | -5/Archives | Discovered new exit (range 14) 18292 | -5/Archives | Identified exit to Hub_04(d) 18303 | -5/Archives | Entered Hub_04(d) 18303 | -5/Hub_04(d) | Accompanied by 7 allies 18480 | -5/Hub_04(d) | Retrieved Zion intel report: Active Terminals 18481 | -5/Hub_04(d) | Zion Defense Resupply teleported in 18540 | -5/Hub_04(d) | Zion Hacker squad teleported in 18584 | -5/Hub_04(d) | Garrison activated, responded to threat 18591 | -5/Hub_04(d) | Network Hub disabled 18597 | -5/Hub_04(d) | Spotted Lightning 18599 | -5/Hub_04(d) | Spotted Lightning 18600 | -5/Hub_04(d) | Spotted Lightning 18603 | -5/Hub_04(d) | First assault squad dispatched 18614 | -5/Hub_04(d) | Allies destroyed Lightning 18616 | -5/Hub_04(d) | Allies destroyed Lightning 18627 | -5/Hub_04(d) | Spotted Lightning 18629 | -5/Hub_04(d) | Allies destroyed Lightning 18630 | -5/Hub_04(d) | Spotted Lightning 18635 | -5/Hub_04(d) | Found Prototype Energy Cannon 18638 | -5/Hub_04(d) | Spotted Lightning 18652 | -5/Hub_04(d) | Network Hub disabled 18653 | -5/Hub_04(d) | Disrupted transfer network 18654 | -5/Hub_04(d) | Entered Factory 18654 | -4/Factory | Evolved 2 slots: Power x1, Propulsion x1 18759 | -4/Factory | Identified exit to Upper Caves 18759 | -4/Factory | Identified exit to Armory 18792 | -4/Factory | Repaired Centrium Medium Armor Plating 18899 | -4/Factory | Build established: Hacker-Mutant 18958 | -4/Factory | Discovered new exit (range 5) 19026 | -4/Factory | Found Prototype Processor 19039 | -4/Factory | Identified EMDS 19041 | -4/Factory | Identified Exp. Terrain Scan Processor 19104 | -4/Factory | Identified exit to Research 19127 | -4/Factory | Retrieved Zion intel report: Component Schematics 19128 | -4/Factory | Zion Hover Resupply teleported in 19151 | -4/Factory | Zion Melee Resupply teleported in 19161 | -4/Factory | Found Prototype Processor 19236 | -4/Factory | Identified Exp. Melee Analysis Suite 19433 | -4/Factory | First assault squad dispatched 19516 | -4/Factory | Zion Heavy squad teleported in 19548 | -4/Factory | Incoming assault squad redirected 19661 | -4/Factory | Destroyed 9 combat bots 19713 | -4/Factory | Entered Armory 19963 | -4/Armory | First assault squad dispatched 20066 | -4/Armory | Build established: Mutant 20176 | -4/Armory | Incoming assault squad redirected 20296 | -4/Armory | Lost 4 parts (2n1u1w) 20467 | -4/Armory | System corruption reached 10% 20498 | -4/Armory | Core integrity fell below 50% 20516 | -4/Armory | Lost 4 parts (1p3u) 20521 | -4/Armory | Incoming assault squad redirected 20656 | -4/Armory | Incoming assault squad redirected 20744 | -4/Armory | System corruption reached 30% 20765 | -4/Armory | Lost 14 parts (1p4n5u4w) 20994 | -4/Armory | Fabricated Centrium Leg (x1) 21036 | -4/Armory | Build established: Scavenger-Mutant 21042 | -4/Armory | Terminal network hard line cut 21225 | -4/Armory | Lost 4 parts (4u) 21228 | -4/Armory | Core integrity fell below 20% 21302 | -4/Armory | Lost 6 parts (1p2n2u1w) 21368 | -4/Armory | Build established: Mutant 21568 | -4/Armory | Fabricated Cmb. Antigrav System (x2) 21578 | -4/Armory | Destroyed by H-77 Assassin with Coil Gun Last Messages --------------- 21549_ Penetrated by Slug. 21558_ System corrupted: Lgt. Neutrino Core fused. 21560_ Compression Vault explodes. 21560_ Enh. Nova Cannon destroyed. 21560_ Transfer Shaft disabled. 21560_ H-77 Assassin destroyed. 21560_ P-70 Sage destroyed. 21562_ Penetrated by Slug. 21562_ Slug penetrates Fabricator. 21565_ Myomer Leg destroyed. 21568_ Fabricator completes Cmb. Antigrav System. 21568_ Destroyed Lgt. Antimatter Reactor. 21569_ Slug penetrates Wall. 21572_ Penetrated by Slug. 21572_ Slug penetrates Fabricator. 21575_ The unstable cave ceiling collapses. 21575_ Slug penetrates Wall. 21575_ Penetrated by Slug. 21578_ System corrupted: Enh. Nova Cannon failed to cycle. 21578_ Penetrated by Slug. Map ----- +----------------------------------------------------+ | | | | | | | | | ????????????#???################################## | | ?????????????####?#?#?###??##?#################### | | ???????????##?#?################################## | | ????????#??#??####?#########?####### # ## | | ???????#??########################## """" # ## | | ????????#?#?######################## + | | ????????##?#?####################### # ## | | ?????##?#??##??##################### """" # ## | | ?????#??#########?#?################ ### #### | | ??????#?###?##?############################## # ## | | ?????##?#?################################### # | | ????#???###?###################### | | ????#?##########?################# | | ????##?###?########## ! # "" | | ????##?#?#?########## """" #""" | | ???#?###???########## """""" #"R | | ????####?############ ""F="" #""" % | | ?#??################# """= #""" | | ???##?############### # | | ??#??################ = ! ############# # | | ??#?####?############ =%! ]* #####" ####### | | ???#??#########?##### " @*=[% * #####" | | ????################# "" ! !* ###### | | ???######?########### " =[* ###### |[ "###"## | | ??##?#######?######## hm [%! #######%[######## | | ???#?####?############# # +#######"= "### | | ????####?############## #####[%!"### * | | ?????####################;## [ "### ** | | ????######################## "" "### | | ???#???############ "T ### T #### | | ???#??####?######## " ### #### | | ????????########### " ### #;#### ######## | | ?????#??########### " ##### ######## ######## | | ??????################# ##### ######## #### | | ???????################ ##### ######## #### | | ?????????############## ###### ######## #### | | ??????#?#?######## #?#### ##! " # #### | | ??????????######## ###### ## " # #### % | | ?????????###?##### " ###### ##!!" # #### %% | | ??????????#?#####? ?"T ###### ##! " + #######+ | | ??????????#?###### ###### ##!! # # | | ???????????##?#### ?###?# ## " # # | | ????????????######## ######## ##!!" # # | | ???????????#?####### ######## ##!!" # + "" | | ?????????????##???## ######## ######## # "" | | ????????????#??#??## ######## ######## # "" | +----------------------------------------------------+ Best States ------------- Heat Dissipation 62 Energy Generation 37 Energy Capacity 310 Matter Stores 300 Matter Capacity 300 Sight Range 16 Robot Scan Range 20 Terrain Scan Range 24 Terrain Scan Density 210 Jamming Range 16 Cloak Strength 3 Base Temperature (-) 200 Armor Coverage 450 Resistance: EM 25 Core Shielding 30 Utility Shielding 66 Weapon Shielding 100 Evasion (%) 63 Targeting Accuracy 6 Melee Accuracy 8 Target Analysis 6 Core Analysis 8 Recoil Reduction 3 Offensive Hacking 12 Defensive Hacking 20 Authchip Count 6 Item Schematics ----------------- Hcp. Storage Unit | -8/Materials | Hacked Imp. Melee Analysis Suite | -7/Factory | Hacked Cmb. Antigrav System | -7/Factory | Scanalyzed Mni. Assault Cannon | -7/Factory | Scanalyzed Gravity Neutralizer | -7/Factory | Scanalyzed Plasma Cannon | -7/Zion | Archive Enh. Optical Array | -7/Zion | Archive Powered Hammer | -7/Zion | Archive Coil Gun | -7/Zion | Archive Arc Thrower | -7/Zion | Archive Remote Datajack | -7/Zion | Archive Hvy. Shock Bomb Launcher | -7/Zion | Archive Xenon Bombardment Thruster | -7/Zion | Archive Nuclear Pulse Thruster | -7/Zion | Archive Mak. Flight Unit | -7/Zion | Archive Hrd. Heavy Armor Plating | -7/Zion | Archive Imp. System Restoration Module | -7/Zion | Archive Mak. Salvage Targeting Computer | -7/Zion | Archive Imp. Transmission Jammer | -7/Zion | Archive Ion Burst Cannon | -6/Factory | Z-intel Biomechanical Wings | -6/Factory | Z-intel Cld. Plasma Cannon | -6/Factory | Z-intel Force Rifle | -6/Factory | Z-intel Aerolev Unit | -6/Factory | Z-intel Imp. Airjet | -6/Factory | Z-intel Hvy. Deuterium Engine | -6/Factory | Z-intel Enh. Autogun | -6/Factory | Z-intel Shock Maul | -6/Factory | Z-intel Gui. EMP Blaster | -6/Factory | Z-intel Cld. Deuterium Engine | -6/Factory | Z-intel Combat Drone Bay | -6/Data Miner | Free Lgt. Regenerative Plating | -6/Data Miner | Free Cld. Gravmag System | -6/Data Miner | Free Imp. Energy Well | -6/Data Miner | Free Tiamat Missile Launcher | -6/Data Miner | Free Adv. Medium Treads | -6/Data Miner | Free Adv. Thermal Generator | -6/Data Miner | Free Adv. Heavy Treads | -6/Data Miner | Free Adv. Recalibrator | -6/Data Miner | Free Railgun | -6/Data Miner | Free Prc. Matter Filter | -5/Extension | Z-intel Cld. Fission Core | -5/Extension | Z-intel Kinetic Spear | -5/Extension | Z-intel Enh. Flexi-carbon Leg | -5/Extension | Z-intel Imp. Matter Compressor | -5/Extension | Z-intel Enh. Coil Gun | -5/Extension | Z-intel Cld. Nuclear Pulse Thruster | -5/Extension | Z-intel Prc. Assault Rifle | -5/Extension | Z-intel Imp. Lightning Gun | -5/Extension | Z-intel Cld. Cesium-ion Thruster | -5/Extension | Z-intel Lgt. Neutrino Core | -5/Extension | Z-intel Exp. Heat Sink | -5/Extension | Z-intel Reaction Control System | -4/Factory | Z-intel Matter Compressor | -4/Factory | Z-intel Imp. System Shield | -4/Factory | Z-intel Lrn. Sensor Array | -4/Factory | Z-intel Remote Shield | -4/Factory | Z-intel Imp. Gyrokinetic Inverter | -4/Factory | Z-intel Melee Analysis Suite | -4/Factory | Z-intel Thermal Shield | -4/Factory | Z-intel Imp. Field Recycling Unit | -4/Factory | Z-intel Hyp. Mass Driver | -4/Factory | Z-intel Adv. System Shield | -4/Factory | Z-intel Insulated Plating | -4/Factory | Z-intel System Guard | -4/Factory | Z-intel Point Defense Array | -4/Factory | Z-intel Imp. Arc Projector | -4/Factory | Z-intel Adv. System Restoration Module | -4/Factory | Z-intel Robot Schematics ------------------ R-06 Scavenger | -7/Zion | Archive H-88 Terminator | -7/Zion | Archive M-14 Sweeper | -7/Zion | Archive B-48 Gladiator | -7/Zion | Archive I-47 Archangel | -6/Data Miner | Free X-67 Chaingunner | -6/Data Miner | Free L-41 Fighter | -6/Data Miner | Free S-27 Virus | -6/Data Miner | Free B-60 Warrior | -6/Data Miner | Free H-66 Slayer | -6/Data Miner | Free O-32 Director | -6/Data Miner | Free Fabricated ------------ Cmb. Antigrav System | x2 | -6/Factory | Authchip Cmb. Antigrav System | x2 | -6/Factory | Authchip Combat Drone Bay | x1 | -5/Factory | Authchip Centrium Leg | x1 | -4/Armory | Preloaded Cmb. Antigrav System | x2 | -4/Armory | Authchip Alien Tech Used ----------------- None Achievements -------------- None Challenges ------------ None Game ------ Seed CouplerCloakArachnoskeleton Manual? 0 Play Time 03:38:12 Cumulative 497.5 hours Start 2023.11.25 @ 12:22:19 End 2023.11.25 @ 16:35:25 Sessions 1 Manual Loads 0 Difficulty Rogue Special Mode None Game No. 574 Rogue 487 Adventurer 87 Explorer 0 Win Type - Total 27 Types 8/0/15/1/1/0/2/0/0 Lore% 91 Gallery% 93 Achievement% 77 Wizard Run 0 Options --------- ASCII 0 Keyboard 1 Movement Numpad Keybinds 0 Fullscreen 1 Font 18/SmallcapsGlow Map View 76x50 Tactical HUD 1 Map Filters NONE Filters NONE Steam 1 RUN: 65836995-219e-4cee-adc6-99083fe054b5